bitfinex/quotes_ETHUSD_20220111
["timestamp","ask_amount","ask_price","bid_price","bid_amount"]
[1641914345691,0.00227369,3135.8,3135.7,6.3282]
[1641914345890,0.00227369,3135.8,3135.7,6.1922]
[1641914346944,0.95227369,3136.8,3136.0,1.75091979]
[1641914347143,0.95227369,3136.8,3136.0,2.54834979]
[1641914347346,0.00511582,3136.7,3136.0,3.14834979]
[1641914347553,0.00511582,3136.7,3136.1,1.05410903]
[1641914347851,0.00454739,3136.6,3136.1,3.5]
[1641914348148,3.6864,3137.3,3136.3,0.3]
[1641914348149,0.00397897,3136.5,3136.3,0.3]
[1641914348548,3.6864,3137.3,3136.7,0.79729]
[1641914348946,0.00795793,3137.2,3136.8,0.05194529]
[1641914349248,0.383,3138.1,3136.5,0.3]
[1641914349249,0.83264822,3138.4,3136.6,18.8]
[1641914349448,0.07998305,3139.0,3138.1,0.7932706]
[1641914349647,0.79686,3139.1,3138.4,0.79686]
[1641914349893,0.79686,3139.1,3138.0,4.54273277]
[1641914350091,0.01080005,3139.0,3138.1,0.6]
[1641914350603,11.76687522,3139.7,3138.1,0.6]
[1641914350604,0.01023162,3138.9,3138.1,0.6]
[1641914350794,0.01023162,3138.9,3138.3,3.18704]
[1641914350994,0.0096632,3138.8,3138.4,0.3]
[1641914351195,0.0096632,3138.8,3138.0,1.59372]
[1641914351394,2.44577522,3139.3,3137.7,4.6325]
[1641914351395,0.00909477,3138.7,3137.7,4.6325]
[1641914351595,0.00909477,3138.7,3137.7,3.5]
[1641914351599,0.79717,3138.3,3137.7,3.5]
[1641914351794,0.00852635,3138.6,3137.7,3.5]
[1641914351993,0.00625266,3138.2,3137.7,3.5]
[1641914352199,0.00795793,3138.5,3137.8,0.78800417]
[1641914352393,0.00568423,3138.1,3137.8,0.78800417]
[1641914352593,0.0073895,3138.4,3137.8,0.78800417]
[1641914352794,0.00511581,3138.0,3137.9,6.6337579]
[1641914352993,0.00682108,3138.3,3137.8,3.5]
[1641914353198,0.00511581,3138.0,3137.8,3.5]
[1641914353394,0.00625266,3138.2,3137.8,3.5]
[1641914353641,0.00454739,3137.9,3137.8,3.5]
[1641914353839,0.383,3137.9,3136.9,0.00113685]
[1641914354041,0.01294393,3137.6,3136.9,0.00113685]
[1641914354238,0.383,3137.5,3136.9,0.00113685]
[1641914354443,0.38527369,3137.5,3136.9,0.00113685]
[1641914354638,0.38527369,3137.5,3136.1,1.58336634]
[1641914354639,6.40170527,3137.4,3136.1,1.58336634]
[1641914354837,0.383,3137.3,3136.2,0.00397896]
[1641914355038,1.59515,3136.8,3136.2,0.00397896]
[1641914355241,0.7976,3136.5,3136.2,0.00397896]
[1641914355440,0.383,3136.4,3135.8,0.00625266]
[1641914355841,0.333,3136.4,3135.8,0.00625266]
[1641914356041,0.333,3136.4,3135.7,0.00682108]
[1641914356441,1.0,3137.1,3135.7,0.00682108]
[1641914356639,1.38470527,3137.2,3135.8,1.59473]
[1641914357040,0.00113685,3137.1,3136.1,0.79741]
[1641914357483,0.79747,3136.8,3136.3,0.74443729]
[1641914357684,0.79747,3136.8,3136.1,0.6]
[1641914357883,0.79747,3136.8,3136.4,0.00284211]
[1641914358284,1.18047,3136.8,3136.4,0.00284211]
[1641914358489,6.4,3136.7,3135.5,1.2471]
[1641914358687,0.79771,3136.1,3135.6,0.00454739]
[1641914359283,0.79771,3136.1,3135.6,1.12712015]
[1641914359683,1.38413684,3136.6,3135.6,1.12712015]
[1641914359684,0.38413684,3136.6,3135.7,0.00397897]
[1641914360684,0.38413684,3136.6,3136.1,0.8376145]
[1641914360886,0.38413684,3136.6,3136.1,0.7736145]
[1641914361142,0.38413684,3136.6,3136.3,0.79736]
[1641914361143,0.00113684,3136.6,3136.3,0.79736]
[1641914361340,0.00113684,3136.6,3136.3,1.09736]
[1641914361642,0.00113684,3136.6,3136.4,0.3]
[1641914362238,0.383,3138.1,3136.6,6.4]
[1641914362437,6.35667556,3138.3,3136.6,6.4]
[1641914362438,5.524,3138.3,3136.6,6.4]
[1641914362637,0.00795793,3138.0,3136.6,6.7]
[1641914362838,0.00795793,3138.0,3136.6,7.0]
[1641914363036,0.383,3138.1,3136.6,7.0]
[1641914363037,0.00738951,3137.9,3136.6,7.0]
[1641914363237,0.80458951,3137.9,3137.2,0.82590366]
[1641914363441,0.00682108,3137.8,3137.2,0.3]
[1641914363839,0.00625266,3137.7,3136.8,2.39155]
[1641914364039,0.00625266,3137.7,3136.9,0.6]
[1641914364239,0.00568424,3137.6,3137.1,0.79718]
[1641914364640,0.00511581,3137.5,3137.2,0.3]
[1641914364887,0.79726,3137.7,3137.2,0.3]
[1641914364888,0.55237581,3137.7,3137.2,0.3]
[1641914365088,0.55237581,3137.7,3137.3,0.00113685]
[1641914365491,0.45237581,3137.7,3137.3,0.00113685]
[1641914365887,0.45237581,3137.7,3137.0,0.00284211]
[1641914366089,0.79718,3137.9,3137.1,0.79718]
[1641914366488,0.00170527,3137.8,3137.2,0.00170527]
[1641914366890,0.00113685,3137.7,3137.0,0.00284211]
[1641914367089,0.00113685,3137.7,3137.0,0.30284211]
[1641914367490,0.00113685,3137.7,3137.1,0.00227369]
[1641914367890,0.00113685,3137.7,3137.0,0.00284211]
[1641914368093,0.00113685,3137.7,3137.0,0.30284211]
[1641914368291,0.79726,3137.6,3137.0,0.30284211]
[1641914368539,0.79726,3137.6,3137.1,0.00227369]
[1641914368941,0.79726,3137.6,3137.0,0.00284211]
[1641914369141,0.79726,3137.6,3137.0,0.30284211]
[1641914369346,0.79726,3137.6,3137.0,0.00284211]
[1641914369542,0.79726,3137.6,3137.1,0.00227369]
[1641914369741,0.79726,3137.6,3137.0,0.00284211]
[1641914370142,0.79726,3137.6,3136.8,0.00397896]
[1641914370542,0.79726,3137.6,3136.7,1.86689645]
[1641914370941,0.79726,3137.6,3136.8,0.30397896]
[1641914371340,0.79726,3137.6,3136.9,0.00341054]
[1641914372389,1.59584685,3137.7,3137.2,1.02430471]
[1641914372390,0.00113685,3137.7,3137.2,1.02430471]
[1641914372591,0.00113685,3137.7,3137.4,0.06055837]
[1641914373190,0.00113685,3137.7,3137.3,0.30113684]
[1641914373696,0.00113685,3137.7,3137.6,4.74775922]
[1641914373892,0.00113685,3137.7,3137.6,5.04775922]
[1641914376243,0.00113685,3137.7,3137.6,7.44775922]
[1641914377245,0.00113685,3137.7,3137.6,5.04775922]
[1641914377846,15.00113685,3137.7,3137.6,5.04775922]
[1641914378047,14.79028742,3137.7,3137.6,7.64775922]
[1641914378247,5.6838,3138.9,3137.8,0.05485846]
[1641914378448,4.59253,3139.4,3138.2,1.5936498]
[1641914378647,6.038,3139.7,3138.3,2.75457438]
[1641914378648,0.00454739,3138.5,3138.3,2.75457438]
[1641914378846,0.00454739,3138.5,3138.2,2.99042]
[1641914379047,0.00397896,3138.4,3138.3,2.69429244]
[1641914379250,0.00397896,3138.4,3138.3,3.3]
[1641914379548,0.00397896,3138.4,3138.2,2.19359]
[1641914379991,0.00341054,3138.3,3138.2,0.3]
[1641914380488,0.00341054,3138.3,3138.0,4.5323]
[1641914380489,0.00341054,3138.3,3137.7,0.6]
[1641914380888,0.00284212,3138.2,3137.6,0.57639994]
[1641914381289,0.383,3138.5,3137.6,1.08639015]
[1641914381290,0.00227369,3138.1,3137.6,1.08639015]
[1641914381590,0.383,3138.5,3137.6,1.08639015]
[1641914381591,0.00170527,3138.0,3137.6,2.25308461]
[1641914381988,0.00113685,3137.9,3137.6,2.25308461]
[1641914382388,0.00227369,3138.1,3137.6,2.25308461]
[1641914382588,0.00227369,3138.1,3137.6,1.4430944]
[1641914382792,0.00170527,3138.0,3137.6,0.3]
[1641914382993,0.00170527,3138.0,3137.3,0.00113684]
[1641914382994,0.79719,3137.9,3137.3,0.30113684]
[1641914383190,0.00113685,3137.9,3137.3,0.00113684]
[1641914383390,0.00113685,3137.9,3137.4,0.00170527]
[1641914383643,0.00113685,3137.9,3137.3,0.79712]
[1641914384037,0.00113685,3137.9,3137.4,0.00170527]
[1641914384639,0.79833685,3137.9,3137.4,0.00170527]
[1641914385039,0.79833685,3137.9,3137.0,0.30397896]
[1641914385440,0.79833685,3137.9,3137.1,0.00341054]
[1641914385940,0.00113685,3137.9,3137.0,1.34965296]
[1641914386140,0.00113685,3137.9,3137.0,3.96821333]
[1641914386341,0.00113685,3137.9,3137.1,0.00341054]
[1641914386738,0.00113685,3137.9,3137.0,5.55845437]
[1641914386939,0.00397896,3137.8,3137.3,0.79713]
[1641914387143,0.00397896,3137.8,3137.3,0.3]
[1641914387395,1.94036798,3138.0,3137.0,1.945674]
[1641914387396,0.00341054,3137.7,3137.0,1.945674]
[1641914387801,1.94036798,3138.0,3137.0,1.945674]
[1641914387802,0.00284212,3137.6,3137.0,1.945674]
[1641914387996,0.00284212,3137.6,3137.1,0.79711]
[1641914388197,0.00227369,3137.5,3137.0,2.742864]
[1641914388599,0.00170527,3137.4,3137.0,2.742864]
[1641914388998,0.00113685,3137.3,3137.0,3.5399916]
[1641914389201,0.00113685,3137.3,3137.0,2.742864]
[1641914389399,0.00454739,3137.9,3137.0,2.742864]
[1641914389802,0.00397896,3137.8,3137.0,2.742864]
[1641914390199,0.79716,3138.0,3137.0,2.742864]
[1641914390200,0.00341054,3137.7,3137.0,2.742864]
[1641914390403,0.00341054,3137.7,3137.0,1.945674]
[1641914390600,0.00284212,3137.6,3137.0,1.945674]
[1641914390801,0.00284212,3137.6,3137.0,0.6]
[1641914391041,0.00227369,3137.5,3137.1,0.3]
[1641914391442,0.00170527,3137.4,3136.9,1.42962521]
[1641914391841,0.00113685,3137.3,3136.9,1.42962521]
[1641914392243,0.00341054,3137.7,3136.9,1.42962521]
[1641914392445,0.00341054,3137.7,3136.9,2.22682521]
[1641914392742,0.00284212,3137.6,3136.9,2.22682521]
[1641914393141,0.00227369,3137.5,3136.9,2.22682521]
[1641914393342,0.00227369,3137.5,3136.9,1.42962521]
[1641914393648,0.00170527,3137.4,3136.9,1.42962521]
[1641914393842,0.00170527,3137.4,3137.0,0.79718]
[1641914394042,0.00113685,3137.3,3137.2,0.3]
[1641914396794,0.00113685,3137.3,3137.2,7.85877381]
[1641914396992,0.95113685,3138.4,3138.0,0.63677351]
[1641914397493,0.9573895,3138.4,3138.0,0.93677351]
[1641914397695,0.00625265,3138.4,3138.0,0.93677351]
[1641914397993,0.00625265,3138.4,3138.0,1.23677351]
[1641914398393,0.00625265,3138.4,3138.1,0.06916433]
[1641914398645,0.00625265,3138.4,3138.0,0.6]
[1641914399843,0.00625265,3138.4,3138.0,1.37990159]
[1641914400847,0.79705,3138.5,3137.3,5.91888]
[1641914401044,0.79705,3138.5,3138.1,0.00170527]
[1641914401045,3.35822209,3138.4,3138.1,0.00170527]
[1641914401246,3.01940615,3138.4,3138.1,0.00170527]
[1641914401460,2.64496404,3138.3,3137.4,0.00568423]
[1641914401650,0.383,3138.2,3137.4,0.00568423]
[1641914401844,0.383,3138.2,3136.7,1.2095]
[1641914401845,1.12559921,3137.3,3136.8,0.00909477]
[1641914402045,0.79739,3137.1,3136.8,0.00909477]
[1641914402296,0.79739,3137.1,3136.5,6.14829901]
[1641914402297,2.95,3137.5,3136.5,2.12389378]
[1641914402490,0.00113685,3137.0,3136.6,0.7973]
[1641914402690,0.383,3137.8,3136.6,0.00113685]
[1641914402691,0.00341054,3137.4,3136.6,0.00113685]
[1641914402893,1.0,3137.8,3136.4,0.00143057]
[1641914402894,0.00397896,3137.5,3136.4,0.00143057]
[1641914403089,0.00284212,3137.3,3136.4,0.00143057]
[1641914403289,1.0,3138.0,3137.0,0.72952191]
[1641914403290,0.00454739,3137.4,3137.0,0.72952191]
[1641914403491,0.00341054,3137.2,3137.0,0.72952191]
[1641914403693,0.00397897,3137.3,3137.0,0.72952191]
[1641914403892,0.00284212,3137.1,3137.0,3.42952191]
[1641914404091,0.00341054,3137.2,3137.0,3.72952191]
[1641914404291,0.00284212,3137.1,3137.0,3.95044291]
[1641914404495,0.00284212,3137.1,3137.0,1.25044291]
[1641914404694,0.00284212,3137.1,3137.0,0.520921]
[1641914404894,0.00284212,3137.1,3137.0,0.220921]
[1641914405193,0.00284212,3137.1,3137.0,0.520921]
[1641914405395,0.00284212,3137.1,3137.0,0.3]
[1641914405594,0.00284212,3137.1,3137.0,2.70913393]
[1641914406043,0.00284212,3137.1,3137.0,3.00913393]
[1641914406242,0.00284212,3137.1,3137.0,3.30913393]
[1641914407144,0.00284212,3137.1,3136.3,1.5944308]
[1641914407145,3.95,3137.0,3136.2,4.06399782]
[1641914407344,0.459,3136.9,3136.2,4.06399782]
[1641914407548,1.46070527,3136.9,3136.3,0.00170527]
[1641914407743,0.00113685,3136.8,3136.3,0.00170527]
[1641914407947,0.459,3136.7,3136.3,0.00170527]
[1641914408143,0.459,3136.7,3136.4,0.66835604]
[1641914408547,1.25649,3136.7,3136.3,0.00170527]
[1641914408746,0.459,3136.7,3136.3,0.00170527]
[1641914409144,0.459,3136.7,3136.3,0.30170527]
[1641914409545,0.459,3136.7,3136.4,0.00113684]
[1641914410392,0.459,3136.7,3136.4,0.62423809]
[1641914411194,0.459,3136.7,3136.4,0.92423809]
[1641914411395,0.459,3136.7,3136.5,0.06374847]
[1641914411595,0.00113685,3136.8,3136.4,0.92423809]
[1641914411994,0.00113685,3136.8,3136.5,0.05456748]
[1641914412195,0.00113685,3136.8,3136.4,0.92423809]
[1641914412397,0.00113685,3136.8,3136.7,1.387357]
[1641914412597,0.00113685,3136.8,3136.7,1.687357]
[1641914412797,0.00113685,3136.8,3136.7,1.987357]
[1641914414753,0.00113685,3136.8,3136.7,1.687357]
[1641914415951,0.00113685,3136.8,3136.7,0.3]
[1641914416147,0.00113685,3136.8,3136.5,0.3]
[1641914416348,0.00113685,3136.8,3136.5,0.6]
[1641914416551,0.00113685,3136.8,3136.5,1.0972443]
[1641914416752,0.00113685,3136.8,3136.6,1.65379202]
[1641914416949,0.00113685,3136.8,3136.6,1.5942547]
[1641914417150,0.00113685,3136.8,3136.6,2.8942547]
[1641914417393,0.00113685,3136.8,3136.7,7.5612155]
[1641914417596,0.00113685,3136.8,3136.7,8.5612155]
[1641914417793,0.127714,3137.7,3136.8,18.8]
[1641914417994,0.127714,3137.7,3137.3,0.3]
[1641914418195,0.00454739,3137.6,3137.3,0.3]
[1641914418397,0.00454739,3137.6,3137.2,0.3]
[1641914418595,0.459,3138.7,3138.4,2.35340818]
[1641914418795,1.59381,3139.3,3138.4,2.35340818]
[1641914418796,0.459,3139.2,3138.4,2.35340818]
[1641914418997,0.459,3139.6,3138.7,0.79671]
[1641914419198,0.459,3139.6,3138.7,1.09671]
[1641914419396,0.459,3139.6,3138.8,0.3]
[1641914419397,0.01023163,3139.3,3138.8,0.3]
[1641914419796,0.0096632,3139.2,3138.8,1.096642]
[1641914419996,0.0096632,3139.2,3139.0,0.79657]
[1641914420197,0.00909478,3139.1,3139.0,1.17947859]
[1641914420396,0.00909478,3139.1,3139.0,1.47947859]
[1641914421844,0.02424042,3139.1,3139.0,1.47947859]
[1641914422246,0.02424042,3139.1,3139.0,0.3]
[1641914422747,0.02424042,3139.1,3138.8,0.3]
[1641914423146,0.00852636,3139.0,3138.8,0.3]
[1641914423653,0.01514564,3139.1,3138.3,3.9698]
[1641914423654,0.00795793,3138.9,3138.3,3.9698]
[1641914423849,0.00795793,3138.9,3138.2,0.00143057]
[1641914424149,0.00795793,3138.9,3137.4,6.60746634]
[1641914424150,0.0127947,3138.7,3137.9,4.06207741]
[1641914424448,0.00625266,3138.6,3137.9,4.06207741]
[1641914424652,0.00625266,3138.6,3137.4,1.58336634]
[1641914424653,0.79734,3137.7,3137.4,1.58336634]
[1641914425102,0.79734,3137.7,3136.6,1.58336634]
[1641914425303,0.383,3137.6,3136.6,1.58336634]
[1641914425600,0.383,3137.6,3136.7,0.00454738]
[1641914425802,0.79734,3137.3,3136.7,1.29389105]
[1641914426002,0.383,3137.2,3136.7,1.29389105]
[1641914426204,0.383,3137.1,3136.8,0.00397896]
[1641914426402,0.383,3137.0,3136.8,0.00397896]
[1641914426600,1.0,3137.7,3136.8,0.00397896]
[1641914426601,0.383,3137.3,3136.8,0.00397896]
[1641914427607,3.08587947,3137.3,3136.8,0.00397896]
[1641914427804,0.383,3137.3,3136.8,0.00397896]
[1641914428002,0.383,3137.3,3136.1,6.09]
[1641914428003,1.0,3137.2,3136.3,0.00682108]
[1641914428205,0.383,3137.1,3136.3,0.00682108]
[1641914428404,0.383,3137.0,3136.2,0.0073895]
[1641914428648,0.383,3136.9,3136.5,2.15931823]
[1641914428848,0.383,3136.9,3136.5,2.45931823]
[1641914429046,0.383,3136.9,3136.6,0.00511581]
[1641914431145,0.383,3136.9,3136.7,2.70935693]
[1641914431346,0.383,3136.9,3136.7,3.00935693]
[1641914431548,0.383,3136.9,3136.8,0.00397896]
[1641914432401,1.18047,3136.9,3136.8,0.00397896]
[1641914432601,5.93047,3136.9,3136.8,0.00397896]
[1641914432800,5.93047,3136.9,3135.9,0.00909477]
[1641914433000,0.383,3136.9,3136.6,1.26491576]
[1641914433400,0.383,3136.9,3136.7,0.00454738]
[1641914433999,0.383,3136.9,3136.8,1.12331303]
[1641914434403,0.383,3136.9,3136.8,0.00397896]
[1641914434602,3.183,3136.9,3136.8,0.00397896]
[1641914434801,3.183,3136.9,3135.9,0.00909477]
[1641914435001,3.183,3136.9,3136.7,0.00454738]
[1641914435201,3.183,3136.9,3135.9,0.00909477]
[1641914435404,0.383,3136.9,3136.0,0.79736]
[1641914435603,0.383,3136.9,3136.6,0.73266778]
[1641914435805,0.383,3136.9,3136.6,1.03266778]
[1641914436059,0.383,3137.9,3136.8,0.05460509]
[1641914436261,0.383,3137.9,3136.7,0.00454738]
[1641914436462,0.383,3137.9,3136.9,0.00341054]
[1641914436662,0.383,3137.9,3136.7,0.30454738]
[1641914436862,0.383,3137.9,3137.4,1.96886635]
[1641914437466,1.1801,3138.3,3137.4,1.96886635]
[1641914437666,6.3152,3138.8,3137.4,2.26886635]
[1641914437861,6.3152,3138.8,3137.5,0.05149519]
[1641914438061,6.3152,3138.8,3137.4,1.96886635]
[1641914438262,1.46377202,3138.1,3136.8,0.00397896]
[1641914438462,1.46377202,3138.1,3136.8,0.80111896]
[1641914438661,1.46377202,3138.1,3136.9,0.6]
[1641914438861,1.46377202,3138.1,3136.9,0.60341054]
[1641914439063,2.26092202,3138.1,3137.0,0.00284211]
[1641914439467,3.26092202,3138.1,3137.0,0.00284211]
[1641914439664,3.26092202,3138.1,3137.1,0.83855662]
[1641914439911,1.27379433,3137.6,3137.0,0.00284211]
[1641914440108,1.27379433,3137.6,3137.2,0.00170527]
[1641914440109,0.383,3137.5,3137.2,0.00170527]
[1641914440313,0.383,3137.5,3137.0,0.00284211]
[1641914440909,0.383,3137.5,3137.0,2.71170493]
[1641914441309,0.383,3137.5,3137.1,0.00227369]
[1641914441709,1.18031,3137.5,3137.1,0.00227369]
[1641914441909,1.18031,3137.5,3136.8,0.00397896]
[1641914442716,0.00113685,3137.7,3136.8,1.10112896]
[1641914442910,0.00113685,3137.7,3136.9,0.0916683]
[1641914443112,0.00113685,3137.7,3136.9,0.09507884]
[1641914443310,0.00113685,3137.7,3137.0,0.00284211]
[1641914443944,0.00113685,3137.7,3137.2,1.35931779]
[1641914444243,0.00113685,3137.7,3137.3,0.00113684]
[1641914444647,0.00113685,3137.7,3137.0,0.00284211]
[1641914445047,0.79837685,3137.7,3137.0,0.00284211]
[1641914445247,1.20043107,3137.2,3137.0,0.00284211]
[1641914445645,1.20043107,3137.2,3137.0,2.71200983]
[1641914445847,1.20043107,3137.2,3137.0,3.01200983]
[1641914446049,1.20043107,3137.2,3137.1,0.00227369]
[1641914446746,1.20043107,3137.2,3136.7,0.00454738]
[1641914447309,1.20043107,3137.2,3136.5,0.00568423]
[1641914447498,1.20043107,3137.2,3136.7,2.70923549]
[1641914447898,1.20043107,3137.2,3136.7,2.94921445]
[1641914448098,0.00170527,3137.1,3136.7,2.94921445]
[1641914448499,0.00170527,3137.1,3136.4,1.43660183]
[1641914448500,0.00113685,3137.0,3136.6,2.70923549]
[1641914448998,0.00170527,3137.1,3136.6,2.70923549]
[1641914449199,0.00170527,3137.1,3136.6,0.3]
[1641914449398,0.00113685,3137.0,3136.6,0.3]
[1641914449599,0.00113685,3137.0,3136.5,3.80651549]
[1641914449798,0.38584212,3137.3,3136.5,3.80651549]
[1641914450001,0.38584212,3137.3,3136.6,0.00113685]
[1641914450200,0.00227369,3137.2,3136.8,1.51435834]
[1641914450600,0.00170527,3137.1,3136.8,1.51435834]
[1641914450799,0.00170527,3137.1,3136.8,1.81435834]
[1641914451056,0.00113685,3137.0,3136.8,1.81435834]
[1641914451452,0.00227369,3137.2,3136.8,0.3]
[1641914451651,0.00227369,3137.2,3136.6,0.00113685]
[1641914451851,0.00170527,3137.1,3136.6,0.00113685]
[1641914452352,0.00113685,3137.0,3136.6,0.00113685]
[1641914452654,0.00227369,3137.2,3136.9,0.06421157]
[1641914453052,0.00170527,3137.1,3136.8,1.77066746]
[1641914453452,0.00113685,3137.0,3136.8,1.77066746]
[1641914453856,0.00227369,3137.2,3136.8,1.77066746]
[1641914454053,0.00227369,3137.2,3136.9,2.70918584]
[1641914454252,0.383,3137.3,3136.9,2.70918584]
[1641914454253,0.00170527,3137.1,3136.9,2.70918584]
[1641914454553,0.00113685,3137.0,3136.9,2.70918584]
[1641914458207,2.55113685,3137.0,3136.9,2.70918584]
[1641914458556,4.49154985,3137.0,3136.9,2.70918584]
[1641914458749,5.49154985,3137.0,3136.6,0.00113685]
[1641914459149,1.0,3136.9,3136.5,0.00170527]
[1641914459350,1.683,3136.9,3136.5,0.00170527]
[1641914459550,0.683,3136.9,3136.5,0.00170527]
[1641914459753,0.383,3136.9,3136.5,0.00170527]
[1641914459948,0.00113685,3137.0,3136.5,0.00170527]
[1641914460352,0.00113685,3137.0,3136.9,3.61950971]
[1641914460950,0.00113685,3137.0,3136.9,5.07326934]
[1641914461754,0.00113685,3137.0,3136.9,8.08245518]
[1641914462155,0.00113685,3137.0,3136.9,9.08245518]
[1641914462399,0.00113685,3137.0,3136.9,27.88245518]
[1641914463101,0.00113685,3137.0,3136.9,28.67942518]
[1641914463601,0.00113685,3137.0,3136.9,32.74362364]
[1641914464900,0.127683,3138.5,3136.9,12.78992621]
[1641914465101,0.127683,3138.5,3137.5,0.79702]
[1641914465301,0.127683,3138.5,3137.5,1.09702]
[1641914465302,0.00795792,3138.4,3137.5,1.09702]
[1641914465701,0.127683,3138.5,3137.5,1.09702]
[1641914465702,0.0073895,3138.3,3138.0,0.79938978]
[1641914466149,0.00682108,3138.2,3138.0,1.39938978]
[1641914466346,0.00682108,3138.2,3138.0,2.19626978]
[1641914466546,0.127683,3138.5,3138.0,2.19626978]
[1641914466547,0.00625265,3138.1,3138.0,2.19626978]
[1641914466946,0.00625265,3138.1,3138.0,3.68578772]
[1641914467147,0.01524843,3138.3,3138.1,6.4]
[1641914467447,0.01524843,3138.3,3138.1,7.9933918]
[1641914467646,0.01524843,3138.3,3138.2,0.3]
[1641914468050,0.01638528,3138.3,3138.2,0.3]
[1641914468951,0.79679,3139.6,3138.3,6.4]
[1641914469149,12.9452,3140.1,3139.0,0.7966]
[1641914469448,0.00454739,3139.1,3139.0,1.3966]
[1641914469905,0.00454739,3139.1,3139.0,10.25015508]
[1641914470103,0.00454739,3139.1,3139.0,11.25015508]
[1641914470303,5.7061,3140.1,3140.0,1.22630684]
[1641914470505,0.127612,3140.3,3140.0,1.52630684]
[1641914471206,0.127612,3140.3,3139.3,2.3894573]
[1641914471408,0.127612,3140.3,3139.1,1.59298]
[1641914471409,0.79664,3140.1,3139.0,6.33488584]
[1641914471604,4.54464469,3140.3,3139.0,2.70918584]
[1641914471803,0.00511581,3140.0,3139.0,2.70918584]
[1641914472003,0.383,3139.9,3138.6,0.79669]
[1641914472203,0.383,3139.9,3139.2,1.52417971]
[1641914472204,1.89347991,3139.9,3139.2,1.52417971]
[1641914472405,0.00397896,3139.8,3139.2,1.52417971]
[1641914472608,0.80069896,3139.8,3139.2,1.52417971]
[1641914472804,0.233,3139.9,3139.2,1.52417971]
[1641914472805,0.00341054,3139.7,3139.2,1.47417971]
[1641914473207,0.00284212,3139.6,3139.2,1.47417971]
[1641914473675,1.510612,3140.3,3139.2,1.77417971]
[1641914473676,0.00227369,3139.5,3139.2,1.77417971]
[1641914474070,0.00170527,3139.4,3139.2,2.57077971]
[1641914474470,0.00113685,3139.3,3139.2,1.77417971]
[1641914474871,0.00625266,3139.3,3139.2,1.77417971]
[1641914475271,0.33623956,3139.3,3139.2,1.77417971]
[1641914475973,0.33623956,3139.3,3139.2,2.07417971]
[1641914477396,0.127612,3140.3,3139.2,8.02417971]
[1641914477598,0.127612,3140.3,3139.7,0.7964031]
[1641914477798,0.127612,3140.3,3139.5,3.1856162]
[1641914477799,0.127612,3140.3,3139.8,0.38523347]
[1641914477998,0.127612,3140.3,3139.8,0.6022737]
[1641914478302,0.127612,3140.3,3140.0,0.85003287]
[1641914478498,0.127612,3140.3,3140.1,0.35729621]
[1641914478698,0.9422531,3141.4,3140.2,6.4]
[1641914478899,0.9422531,3141.4,3140.3,0.06791573]
[1641914479099,0.00568423,3141.2,3140.3,1.0]
[1641914479498,0.00511581,3141.1,3140.6,1.59209]
[1641914479703,0.00511581,3141.1,3140.8,1.5921508]
[1641914479898,0.00511581,3141.1,3140.6,1.59209]
[1641914479899,0.00454738,3141.0,3140.7,0.3]
[1641914480299,0.00397896,3140.9,3140.6,2.19236]
[1641914480700,0.00341054,3140.8,3139.9,4.50170527]
[1641914480906,0.00341054,3140.8,3140.1,0.78523402]
[1641914481150,0.33844207,3141.2,3140.2,0.79632]
[1641914481151,0.00284211,3140.7,3140.2,0.79632]
[1641914481353,0.00284211,3140.7,3140.2,1.99503652]
[1641914481557,0.00227369,3140.6,3140.2,1.99503652]
[1641914481750,0.00227369,3140.6,3140.2,5.17990772]
[1641914481949,0.00170527,3140.5,3140.2,5.17990772]
[1641914482149,0.00170527,3140.5,3140.3,0.6]
[1641914482351,0.00113684,3140.4,3140.3,0.6]
[1641914482853,0.9422531,3141.4,3140.5,0.07973569]
[1641914483049,0.9422531,3141.4,3140.8,2.18362019]
[1641914483251,0.00113684,3141.3,3140.9,0.3]
[1641914483553,0.00113684,3141.3,3140.9,0.30113685]
[1641914483752,0.00113684,3141.3,3141.0,0.65204413]
[1641914483949,0.00113684,3141.3,3141.0,1.44812413]
[1641914484149,0.00113684,3141.3,3141.0,2.04812413]
[1641914484350,0.00113684,3141.3,3141.0,3.64021573]
[1641914484551,0.00113684,3141.3,3141.0,2.84413573]
[1641914485802,0.00113684,3141.3,3141.0,2.24413573]
[1641914486004,0.00113684,3141.3,3141.0,0.65204413]
[1641914487104,0.00113684,3141.3,3141.1,1.592075]
[1641914487304,0.00113684,3141.3,3141.1,1.892075]
[1641914488659,0.00113684,3141.3,3141.2,7.67969922]
[1641914489058,0.00113684,3141.3,3141.2,0.3]
[1641914489455,0.00113684,3141.3,3141.1,2.192075]
[1641914489654,1.46163635,3142.2,3141.1,8.592075]
[1641914489856,0.12754,3142.2,3141.2,2.43468908]
[1641914490056,0.459,3143.5,3141.7,0.01219993]
[1641914490057,0.00454739,3142.1,3141.7,0.01219993]
[1641914490257,0.00454739,3142.1,3142.0,1.5916934]
[1641914490454,0.459,3143.5,3142.0,2.1916934]
[1641914490654,0.79588,3143.2,3142.0,1.39586]
[1641914490855,0.923378,3143.2,3142.4,1.25443866]
[1641914491057,0.923378,3143.2,3142.4,1.85443866]
[1641914491058,0.127498,3143.2,3142.4,1.85443866]
[1641914491257,0.127498,3143.2,3142.7,0.68558921]
[1641914491463,0.127498,3143.2,3142.8,1.5912999]
[1641914491655,0.127498,3143.2,3142.9,0.0615703]
[1641914491855,0.127498,3143.2,3142.9,0.3]
[1641914492503,0.077498,3143.2,3142.9,0.3]
[1641914492804,0.077498,3143.2,3142.9,1.0956]
[1641914493004,0.077498,3143.2,3142.9,0.6]
[1641914493507,0.077498,3143.2,3143.1,1.33840118]
[1641914493704,0.077498,3143.2,3142.9,1.09564]
[1641914493906,0.08829805,3143.2,3142.9,1.09564]
[1641914494109,0.08829805,3143.2,3142.4,3.932]
[1641914494110,0.01023163,3143.1,3142.4,3.932]
[1641914494306,0.077498,3143.2,3141.7,3.7278]
[1641914494307,0.04672963,3143.2,3142.0,0.7958947]
[1641914494506,0.759,3143.0,3141.7,0.79597]
[1641914494709,0.759,3143.0,3142.1,0.00568424]
[1641914494710,1.92246939,3142.9,3142.1,0.00568424]
[1641914494906,0.79615,3142.5,3141.8,0.00738951]
[1641914495106,0.79615,3142.5,3141.3,0.01023163]
[1641914495305,0.79615,3142.5,3141.1,0.85774276]
[1641914495306,0.459,3142.4,3141.1,0.85774276]